[Event "Early-Titled-Tuesday-Blitz-December-26-2023"]
[Site "Chess.com"]
[Date "2023.12.26"]
[Round "4"]
[White "SharapovEvgeny"]
[Black "margarita_2703"]
[Result "1-0"]
[WhiteElo "2584"]
[BlackElo "2324"]
[TimeControl "180+1"]
[EndTime "8:35:14 PST"]
[Termination "SharapovEvgeny won by resignation"]

1. e4 {[%clk 0:03:00.1]} 1... c5 {[%clk 0:02:58.5]} 2. Nf3 {[%clk 0:03:00]} 2...
Nc6 {[%clk 0:02:58.7]} 3. d4 {[%clk 0:03:00.3]} 3... cxd4 {[%clk 0:02:59.6]} 4.
Nxd4 {[%clk 0:03:00.8]} 4... e5 {[%clk 0:03:00.3]} 5. Nb5 {[%clk 0:03:00.7]}
5... a6 {[%clk 0:03:00.9]} 6. Nd6+ {[%clk 0:03:00.4]} 6... Bxd6 {[%clk
0:03:01.6]} 7. Qxd6 {[%clk 0:03:00.6]} 7... Qe7 {[%clk 0:03:02.5]} 8. Qd1 {[%clk
0:02:52.2]} 8... Nf6 {[%clk 0:03:02.2]} 9. Nc3 {[%clk 0:02:52]} 9... Nd4 {[%clk
0:03:00.5]} 10. Bd3 {[%clk 0:02:49.6]} 10... h6 {[%clk 0:02:40.5]} 11. O-O
{[%clk 0:02:49.2]} 11... b5 {[%clk 0:02:38]} 12. Be3 {[%clk 0:02:49]} 12... Ne6
{[%clk 0:02:35.4]} 13. a4 {[%clk 0:02:41]} 13... b4 {[%clk 0:02:33.2]} 14. Nd5
{[%clk 0:02:41.1]} 14... Nxd5 {[%clk 0:02:32.6]} 15. exd5 {[%clk 0:02:41.4]}
15... Nc5 {[%clk 0:02:32.7]} 16. Bxc5 {[%clk 0:02:18.2]} 16... Qxc5 {[%clk
0:02:33.6]} 17. Qg4 {[%clk 0:02:18.1]} 17... g6 {[%clk 0:02:12.9]} 18. Rae1
{[%clk 0:02:01.1]} 18... d6 {[%clk 0:02:12.2]} 19. Qh4 {[%clk 0:02:00.7]} 19...
Bd7 {[%clk 0:02:06.2]} 20. Qf6 {[%clk 0:01:57.1]} 20... Rf8 {[%clk 0:02:04.5]}
21. Kh1 {[%clk 0:01:54]} 21... Bf5 {[%clk 0:01:57.8]} 22. f4 {[%clk 0:01:47.9]}
22... Bxd3 {[%clk 0:01:54.1]} 23. cxd3 {[%clk 0:01:48]} 23... Qxd5 {[%clk
0:01:51.2]} 24. fxe5 {[%clk 0:01:46.7]} 24... Kd7 {[%clk 0:01:51.5]} 25. e6+
{[%clk 0:01:35.2]} 25... fxe6 {[%clk 0:01:48.4]} 26. Qg7+ {[%clk 0:01:35]} 26...
Kc6 {[%clk 0:01:47.6]} 27. Rc1+ {[%clk 0:01:32.1]} 27... Qc5 {[%clk 0:01:44]}
28. Rxc5+ {[%clk 0:01:31.2]} 1-0

[Event "Early-Titled-Tuesday-Blitz-December-26-2023"]
[Site "Chess.com"]
[Date "2023.12.26"]
[Round "4"]
[White "Schachmalanders"]
[Black "Alexei_Gubajdullin"]
[Result "0-1"]
[WhiteElo "2413"]
[BlackElo "2669"]
[TimeControl "180+1"]
[EndTime "8:35:18 PST"]
[Termination "Alexei_Gubajdullin won by resignation"]

1. e4 {[%clk 0:03:00.9]} 1... g6 {[%clk 0:02:48.5]} 2. h4 {[%clk 0:02:59.4]}
2... h6 {[%clk 0:02:48.2]} 3. h5 {[%clk 0:02:59]} 3... g5 {[%clk 0:02:48.1]} 4.
d4 {[%clk 0:02:58.8]} 4... Bg7 {[%clk 0:02:47.3]} 5. Nc3 {[%clk 0:02:59]} 5...
c5 {[%clk 0:02:45.8]} 6. dxc5 {[%clk 0:02:57.4]} 6... Na6 {[%clk 0:02:44.4]} 7.
Be3 {[%clk 0:02:57.1]} 7... Qa5 {[%clk 0:02:41.9]} 8. Bd4 {[%clk 0:02:57.1]}
8... e5 {[%clk 0:02:40.8]} 9. Be3 {[%clk 0:02:55.9]} 9... Nf6 {[%clk 0:02:40.7]}
10. a3 {[%clk 0:02:52.2]} 10... Nxe4 {[%clk 0:02:34.9]} 11. Bxa6 {[%clk
0:02:30.9]} 11... Nxc3 {[%clk 0:02:31.8]} 12. Qd2 {[%clk 0:02:20.8]} 12... bxa6
{[%clk 0:02:27.9]} 13. Qxc3 {[%clk 0:02:19.7]} 13... Qxc3+ {[%clk 0:02:26.5]}
14. bxc3 {[%clk 0:02:20.6]} 14... Bb7 {[%clk 0:02:23.5]} 15. Nf3 {[%clk
0:02:18.8]} 15... Bxf3 {[%clk 0:01:58.7]} 16. gxf3 {[%clk 0:02:18.3]} 16... e4
{[%clk 0:01:58.7]} 17. Bd4 {[%clk 0:02:17.2]} 17... Bxd4 {[%clk 0:01:58.3]} 18.
cxd4 {[%clk 0:02:18.1]} 18... exf3 {[%clk 0:01:58.5]} 19. Kd2 {[%clk 0:02:08.8]}
19... O-O {[%clk 0:01:56.4]} 20. Ke3 {[%clk 0:02:06.5]} 20... g4 {[%clk
0:01:56.1]} 21. Rhg1 {[%clk 0:02:05.5]} 21... f5 {[%clk 0:01:55.5]} 22. Rge1
{[%clk 0:02:00.5]} 22... f4+ {[%clk 0:01:52.9]} 23. Kd3 {[%clk 0:01:59.2]} 23...
g3 {[%clk 0:01:48.1]} 24. Rg1 {[%clk 0:01:59]} 24... Rae8 {[%clk 0:01:42.6]} 25.
fxg3 {[%clk 0:01:50.3]} 25... f2 {[%clk 0:01:42.2]} 26. Rg2 {[%clk 0:01:49]}
26... Re1 {[%clk 0:01:41.6]} 27. gxf4+ {[%clk 0:01:48.2]} 27... Kf7 {[%clk
0:01:38.7]} 0-1

[Event "Early-Titled-Tuesday-Blitz-December-26-2023"]
[Site "Chess.com"]
[Date "2023.12.26"]
[Round "4"]
[White "bazar-wokzal"]
[Black "Chempiblinka"]
[Result "1-0"]
[WhiteElo "2639"]
[BlackElo "2265"]
[TimeControl "180+1"]
[EndTime "8:35:33 PST"]
[Termination "bazar-wokzal won by resignation"]

1. e4 {[%clk 0:03:00.9]} 1... c5 {[%clk 0:02:52.8]} 2. c3 {[%clk 0:03:00.6]}
2... d5 {[%clk 0:02:50.4]} 3. exd5 {[%clk 0:03:00.9]} 3... Qxd5 {[%clk
0:02:51.3]} 4. d4 {[%clk 0:03:01.4]} 4... Nf6 {[%clk 0:02:48.4]} 5. Nf3 {[%clk
0:03:01.3]} 5... Bg4 {[%clk 0:02:47.8]} 6. dxc5 {[%clk 0:03:00.8]} 6... Qxd1+
{[%clk 0:02:44.8]} 7. Kxd1 {[%clk 0:03:00.7]} 7... e5 {[%clk 0:02:45]} 8. b4
{[%clk 0:03:00.7]} 8... e4 {[%clk 0:02:40.1]} 9. h3 {[%clk 0:03:00.3]} 9...
Bxf3+ {[%clk 0:02:38.6]} 10. gxf3 {[%clk 0:03:00.2]} 10... exf3 {[%clk
0:02:39.3]} 11. Nd2 {[%clk 0:02:54.8]} 11... Be7 {[%clk 0:02:15.9]} 12. Nxf3
{[%clk 0:02:54.1]} 12... O-O {[%clk 0:02:15.9]} 13. Kc2 {[%clk 0:02:53.1]} 13...
a5 {[%clk 0:02:10.4]} 14. Bc4 {[%clk 0:02:44.4]} 14... Na6 {[%clk 0:01:39.4]}
15. Rb1 {[%clk 0:02:42.2]} 15... Rfc8 {[%clk 0:01:20.3]} 16. Re1 {[%clk
0:02:41.1]} 16... Bf8 {[%clk 0:01:20]} 17. Ng5 {[%clk 0:02:38.7]} 17... Rc7
{[%clk 0:01:12.7]} 18. Bf4 {[%clk 0:02:38]} 18... Rd7 {[%clk 0:01:06.2]} 19. a3
{[%clk 0:02:32.7]} 19... h6 {[%clk 0:01:05.6]} 20. Nf3 {[%clk 0:02:27.3]} 20...
Nd5 {[%clk 0:00:39.5]} 21. Ne5 {[%clk 0:02:22.5]} 21... Rdd8 {[%clk 0:00:36.9]}
22. Nxf7 {[%clk 0:02:17.4]} 22... Kxf7 {[%clk 0:00:32.8]} 23. Rbd1 {[%clk
0:02:16.8]} 23... Nc7 {[%clk 0:00:32.2]} 24. Bxc7 {[%clk 0:02:16.1]} 1-0

[Event "Early-Titled-Tuesday-Blitz-December-26-2023"]
[Site "Chess.com"]
[Date "2023.12.26"]
[Round "4"]
[White "Mikayel99"]
[Black "Evgeny81"]
[Result "0-1"]
[WhiteElo "2582"]
[BlackElo "2765"]
[TimeControl "180+1"]
[EndTime "8:35:43 PST"]
[Termination "Evgeny81 won by resignation"]

1. Nf3 {[%clk 0:03:00.6]} 1... d5 {[%clk 0:02:58.3]} 2. d4 {[%clk 0:03:01.1]}
2... Nf6 {[%clk 0:02:56.5]} 3. c4 {[%clk 0:03:01.2]} 3... c6 {[%clk 0:02:57]} 4.
cxd5 {[%clk 0:03:00.5]} 4... cxd5 {[%clk 0:02:56.9]} 5. Nc3 {[%clk 0:03:00.7]}
5... Nc6 {[%clk 0:02:57.4]} 6. Bf4 {[%clk 0:03:01]} 6... a6 {[%clk 0:02:57.7]}
7. e3 {[%clk 0:03:00.4]} 7... Bg4 {[%clk 0:02:57.8]} 8. Qb3 {[%clk 0:02:59.7]}
8... Na5 {[%clk 0:02:56.8]} 9. Qa4+ {[%clk 0:02:59.8]} 9... Bd7 {[%clk
0:02:54.4]} 10. Qc2 {[%clk 0:02:59.9]} 10... e6 {[%clk 0:02:54]} 11. Bd3 {[%clk
0:02:59.1]} 11... Rc8 {[%clk 0:02:53.1]} 12. O-O {[%clk 0:02:57.4]} 12... Bb4
{[%clk 0:02:52.8]} 13. Ne5 {[%clk 0:02:54.4]} 13... h6 {[%clk 0:02:50]} 14. Rfc1
{[%clk 0:02:51.8]} 14... O-O {[%clk 0:02:48.4]} 15. Nxd7 {[%clk 0:02:50.3]}
15... Qxd7 {[%clk 0:02:46]} 16. Qd2 {[%clk 0:02:44.4]} 16... Nc4 {[%clk
0:02:40.9]} 17. Bxc4 {[%clk 0:02:42.6]} 17... Rxc4 {[%clk 0:02:41.8]} 18. f3
{[%clk 0:02:31.5]} 18... Rfc8 {[%clk 0:02:36.2]} 19. Rc2 {[%clk 0:02:31.8]}
19... Qc6 {[%clk 0:02:15.9]} 20. Rac1 {[%clk 0:02:30.1]} 20... b5 {[%clk
0:02:09.8]} 21. Qd3 {[%clk 0:02:29.1]} 21... Ba5 {[%clk 0:02:00.5]} 22. a3
{[%clk 0:02:19.8]} 22... Nd7 {[%clk 0:01:45.1]} 23. e4 {[%clk 0:02:08.5]} 23...
Rxd4 {[%clk 0:01:40.2]} 24. Qe2 {[%clk 0:02:02.4]} 24... Rc4 {[%clk 0:01:35.4]}
25. exd5 {[%clk 0:01:37.9]} 25... exd5 {[%clk 0:01:36.3]} 26. b4 {[%clk
0:01:32.5]} 26... Bb6+ {[%clk 0:01:33]} 27. Kh1 {[%clk 0:01:30.3]} 27... d4
{[%clk 0:01:29]} 0-1

[Event "Early-Titled-Tuesday-Blitz-December-26-2023"]
[Site "Chess.com"]
[Date "2023.12.26"]
[Round "4"]
[White "adapodadei"]
[Black "Felix-Rose"]
[Result "1-0"]
[WhiteElo "2738"]
[BlackElo "2247"]
[TimeControl "180+1"]
[EndTime "8:35:49 PST"]
[Termination "adapodadei won by resignation"]

1. g3 {[%clk 0:03:00.9]} 1... d5 {[%clk 0:02:59.2]} 2. Bg2 {[%clk 0:03:00.9]}
2... c6 {[%clk 0:02:59.4]} 3. d3 {[%clk 0:03:01.4]} 3... Nf6 {[%clk 0:02:58.9]}
4. Nd2 {[%clk 0:03:01.6]} 4... e5 {[%clk 0:02:59]} 5. Ngf3 {[%clk 0:03:01]} 5...
Bd6 {[%clk 0:02:58.7]} 6. e4 {[%clk 0:03:00.9]} 6... dxe4 {[%clk 0:02:56.3]} 7.
dxe4 {[%clk 0:03:00.6]} 7... Bc7 {[%clk 0:02:53.8]} 8. O-O {[%clk 0:02:59.8]}
8... O-O {[%clk 0:02:53.6]} 9. Qe2 {[%clk 0:02:59.7]} 9... Nbd7 {[%clk
0:02:52.7]} 10. a4 {[%clk 0:02:59]} 10... a5 {[%clk 0:02:52.1]} 11. Nc4 {[%clk
0:02:54.5]} 11... Qe7 {[%clk 0:02:49.3]} 12. Nh4 {[%clk 0:02:54.4]} 12... Nb6
{[%clk 0:02:47.2]} 13. Ne3 {[%clk 0:02:50.8]} 13... g6 {[%clk 0:02:43.3]} 14. b3
{[%clk 0:02:50.2]} 14... Rd8 {[%clk 0:02:40]} 15. Bb2 {[%clk 0:02:47.7]} 15...
Be6 {[%clk 0:02:34.7]} 16. Rfd1 {[%clk 0:02:34.6]} 16... Rxd1+ {[%clk
0:02:33.4]} 17. Rxd1 {[%clk 0:02:35.5]} 17... Rd8 {[%clk 0:02:33.7]} 18. Ra1
{[%clk 0:02:36.1]} 18... Qb4 {[%clk 0:02:23.5]} 19. Nf1 {[%clk 0:02:28.5]} 19...
Qe7 {[%clk 0:02:12.7]} 20. Nf3 {[%clk 0:02:25.8]} 20... Nfd7 {[%clk 0:02:09.7]}
21. Ne1 {[%clk 0:02:25.8]} 21... f6 {[%clk 0:02:05.9]} 22. Nd3 {[%clk 0:02:21]}
22... Nc5 {[%clk 0:01:59.7]} 23. Ne1 {[%clk 0:01:59.1]} 23... Qf7 {[%clk
0:01:49.6]} 24. Bc3 {[%clk 0:01:56]} 24... Nbd7 {[%clk 0:01:49.2]} 25. Ne3
{[%clk 0:01:50.8]} 25... b6 {[%clk 0:01:47.6]} 26. Bb2 {[%clk 0:01:41]} 26...
Nb7 {[%clk 0:01:41.7]} 27. Ng4 {[%clk 0:01:20]} 27... Ndc5 {[%clk 0:01:31.2]}
28. Nh6+ {[%clk 0:01:19.6]} 1-0

[Event "Early-Titled-Tuesday-Blitz-December-26-2023"]
[Site "Chess.com"]
[Date "2023.12.26"]
[Round "4"]
[White "ljuks68"]
[Black "Onischuk_V"]
[Result "0-1"]
[WhiteElo "2515"]
[BlackElo "2707"]
[TimeControl "180+1"]
[EndTime "8:35:52 PST"]
[Termination "Onischuk_V won by resignation"]

1. e4 {[%clk 0:03:00.9]} 1... d6 {[%clk 0:02:58]} 2. d4 {[%clk 0:03:00.4]} 2...
Nf6 {[%clk 0:02:57.6]} 3. Nc3 {[%clk 0:03:01]} 3... g6 {[%clk 0:02:57.8]} 4. Bg5
{[%clk 0:03:00.7]} 4... Bg7 {[%clk 0:02:57.8]} 5. f4 {[%clk 0:03:01.1]} 5... O-O
{[%clk 0:02:53.4]} 6. Qd2 {[%clk 0:03:01.1]} 6... h6 {[%clk 0:02:53]} 7. Bh4
{[%clk 0:03:00.9]} 7... e5 {[%clk 0:02:53.2]} 8. Nf3 {[%clk 0:02:53.9]} 8...
exf4 {[%clk 0:02:43.4]} 9. Qxf4 {[%clk 0:02:52.8]} 9... g5 {[%clk 0:02:35.9]}
10. Bxg5 {[%clk 0:02:52.7]} 10... hxg5 {[%clk 0:02:34.2]} 11. Nxg5 {[%clk
0:02:53.3]} 11... Nh7 {[%clk 0:02:31.2]} 12. Nxh7 {[%clk 0:02:29.1]} 12... Kxh7
{[%clk 0:02:30.9]} 13. Bd3 {[%clk 0:02:29.6]} 13... Kg8 {[%clk 0:02:26]} 14.
O-O-O {[%clk 0:02:05.4]} 14... Qf6 {[%clk 0:02:21.5]} 15. Qg3 {[%clk 0:01:54.4]}
15... Qxd4 {[%clk 0:02:17.4]} 16. Rhf1 {[%clk 0:01:27.8]} 16... Nc6 {[%clk
0:02:08.1]} 17. e5 {[%clk 0:01:07.4]} 17... Qxe5 {[%clk 0:02:07]} 18. Qh4 {[%clk
0:01:07.5]} 18... Qe3+ {[%clk 0:02:06]} 19. Kb1 {[%clk 0:01:06]} 19... Qh6
{[%clk 0:02:06.7]} 20. Qe4 {[%clk 0:00:56.2]} 20... Be6 {[%clk 0:02:06]} 21. Rf3
{[%clk 0:00:42.4]} 21... f5 {[%clk 0:02:05.3]} 22. Qe1 {[%clk 0:00:35.1]} 22...
Ne5 {[%clk 0:02:02.8]} 0-1

[Event "Early-Titled-Tuesday-Blitz-December-26-2023"]
[Site "Chess.com"]
[Date "2023.12.26"]
[Round "4"]
[White "ShadyH9"]
[Black "TitarovVasiliYouTube"]
[Result "0-1"]
[WhiteElo "2347"]
[BlackElo "2543"]
[TimeControl "180+1"]
[EndTime "8:35:52 PST"]
[Termination "TitarovVasiliYouTube won by resignation"]

1. Nf3 {[%clk 0:03:00.9]} 1... d5 {[%clk 0:02:58.3]} 2. e3 {[%clk 0:03:00.8]}
2... Bf5 {[%clk 0:02:54.6]} 3. b3 {[%clk 0:02:58.1]} 3... e6 {[%clk 0:02:54.6]}
4. Bb2 {[%clk 0:02:58.4]} 4... Nf6 {[%clk 0:02:54.3]} 5. g3 {[%clk 0:02:58.8]}
5... Be7 {[%clk 0:02:52]} 6. Bg2 {[%clk 0:02:59.1]} 6... O-O {[%clk 0:02:52]} 7.
O-O {[%clk 0:02:59.2]} 7... h6 {[%clk 0:02:52]} 8. d3 {[%clk 0:02:59.4]} 8... c6
{[%clk 0:02:50.3]} 9. Nbd2 {[%clk 0:02:59.5]} 9... a5 {[%clk 0:02:49]} 10. a4
{[%clk 0:02:58.9]} 10... Bh7 {[%clk 0:02:48.7]} 11. Qe2 {[%clk 0:02:59]} 11...
Re8 {[%clk 0:02:43.6]} 12. e4 {[%clk 0:02:59.3]} 12... Bb4 {[%clk 0:02:34]} 13.
Ne5 {[%clk 0:02:38.5]} 13... Bxd2 {[%clk 0:02:29.5]} 14. Qxd2 {[%clk 0:02:38.3]}
14... dxe4 {[%clk 0:02:29.5]} 15. d4 {[%clk 0:02:30.9]} 15... Nbd7 {[%clk
0:02:12.1]} 16. Nc4 {[%clk 0:02:30.8]} 16... Qc7 {[%clk 0:02:10.9]} 17. Ba3
{[%clk 0:02:30.5]} 17... b5 {[%clk 0:01:07.8]} 18. Bd6 {[%clk 0:01:59]} 18...
Qd8 {[%clk 0:01:01.8]} 19. axb5 {[%clk 0:01:57.9]} 19... cxb5 {[%clk 0:01:01.9]}
20. Nxa5 {[%clk 0:01:57.6]} 20... Qb6 {[%clk 0:00:51.1]} 21. c4 {[%clk
0:01:38.4]} 21... Qxd6 {[%clk 0:00:47.4]} 0-1

[Event "Early-Titled-Tuesday-Blitz-December-26-2023"]
[Site "Chess.com"]
[Date "2023.12.26"]
[Round "4"]
[White "chito89"]
[Black "Statham_l3"]
[Result "1-0"]
[WhiteElo "2843"]
[BlackElo "2568"]
[TimeControl "180+1"]
[EndTime "8:36:12 PST"]
[Termination "chito89 won by resignation"]

1. Nf3 {[%clk 0:02:59.6]} 1... d5 {[%clk 0:02:58.8]} 2. e3 {[%clk 0:02:59.7]}
2... Nf6 {[%clk 0:02:56.9]} 3. c4 {[%clk 0:02:59.5]} 3... e6 {[%clk 0:02:54.6]}
4. b3 {[%clk 0:02:57.5]} 4... Bd6 {[%clk 0:02:52.6]} 5. Bb2 {[%clk 0:02:57.1]}
5... O-O {[%clk 0:02:53.2]} 6. Nc3 {[%clk 0:02:56.8]} 6... c5 {[%clk 0:02:52.2]}
7. cxd5 {[%clk 0:02:56.6]} 7... exd5 {[%clk 0:02:48.2]} 8. d4 {[%clk 0:02:53.4]}
8... Nc6 {[%clk 0:02:48]} 9. Be2 {[%clk 0:02:51.7]} 9... Bg4 {[%clk 0:02:44]}
10. dxc5 {[%clk 0:02:51.6]} 10... Bxc5 {[%clk 0:02:42.3]} 11. O-O {[%clk
0:02:50.9]} 11... a6 {[%clk 0:02:28.2]} 12. Rc1 {[%clk 0:02:47.8]} 12... Ba7
{[%clk 0:02:25.9]} 13. h3 {[%clk 0:02:47.9]} 13... Bh5 {[%clk 0:02:25.3]} 14.
Nh4 {[%clk 0:02:46.7]} 14... Bxe2 {[%clk 0:02:23.3]} 15. Nxe2 {[%clk 0:02:47.6]}
15... Bb8 {[%clk 0:01:59.2]} 16. Nf3 {[%clk 0:02:40.5]} 16... Qd6 {[%clk
0:01:52.4]} 17. Bxf6 {[%clk 0:02:39.3]} 17... gxf6 {[%clk 0:01:46.7]} 18. Ng3
{[%clk 0:02:12.6]} 18... Ne5 {[%clk 0:01:36]} 19. Nd4 {[%clk 0:02:11]} 19... Kh8
{[%clk 0:01:31]} 20. Qh5 {[%clk 0:02:03.9]} 20... Rg8 {[%clk 0:01:15]} 21. Rfd1
{[%clk 0:01:58.1]} 21... Rg5 {[%clk 0:01:07.8]} 22. Rc8+ {[%clk 0:01:49.7]}
22... Rg8 {[%clk 0:01:07.6]} 23. Ndf5 {[%clk 0:01:39.8]} 23... Qe6 {[%clk
0:00:40]} 24. Rxg8+ {[%clk 0:01:39.2]} 24... Kxg8 {[%clk 0:00:40.9]} 25. Qh6
{[%clk 0:01:39.7]} 1-0

[Event "Early-Titled-Tuesday-Blitz-December-26-2023"]
[Site "Chess.com"]
[Date "2023.12.26"]
[Round "4"]
[White "chenrip"]
[Black "YurasovMat-2012"]
[Result "0-1"]
[WhiteElo "2349"]
[BlackElo "2527"]
[TimeControl "180+1"]
[EndTime "8:36:26 PST"]
[Termination "YurasovMat-2012 won by checkmate"]

1. e4 {[%clk 0:03:00.9]} 1... e5 {[%clk 0:02:59.3]} 2. d4 {[%clk 0:02:59.8]}
2... exd4 {[%clk 0:02:57.2]} 3. c3 {[%clk 0:03:00]} 3... d3 {[%clk 0:02:48.7]}
4. Bxd3 {[%clk 0:02:59.4]} 4... Nc6 {[%clk 0:02:48.5]} 5. Nf3 {[%clk 0:02:58.9]}
5... g6 {[%clk 0:02:48.4]} 6. O-O {[%clk 0:02:59]} 6... Bg7 {[%clk 0:02:48.3]}
7. Bg5 {[%clk 0:02:57.4]} 7... Nge7 {[%clk 0:02:47.5]} 8. Qd2 {[%clk 0:02:54.9]}
8... h6 {[%clk 0:02:47.3]} 9. Be3 {[%clk 0:02:52.8]} 9... d6 {[%clk 0:02:45.3]}
10. Na3 {[%clk 0:02:49.1]} 10... Be6 {[%clk 0:02:44.7]} 11. Bb5 {[%clk
0:02:43.8]} 11... a6 {[%clk 0:02:43.6]} 12. Ba4 {[%clk 0:02:43.9]} 12... g5
{[%clk 0:02:42.3]} 13. Nd4 {[%clk 0:02:40.7]} 13... Bd7 {[%clk 0:02:41.5]} 14.
f4 {[%clk 0:02:30]} 14... gxf4 {[%clk 0:02:32.5]} 15. Rxf4 {[%clk 0:02:26.5]}
15... Ng6 {[%clk 0:02:31.9]} 16. Rf2 {[%clk 0:02:15.8]} 16... Nxd4 {[%clk
0:02:30.3]} 17. Bxd7+ {[%clk 0:02:13.7]} 17... Qxd7 {[%clk 0:02:30.3]} 18. cxd4
{[%clk 0:02:11.9]} 18... O-O-O {[%clk 0:02:28.5]} 19. Rc1 {[%clk 0:02:08.3]}
19... Kb8 {[%clk 0:02:26.7]} 20. b4 {[%clk 0:02:02.2]} 20... Rde8 {[%clk
0:02:24]} 21. Qc2 {[%clk 0:01:55.5]} 21... Rhf8 {[%clk 0:02:20.8]} 22. b5 {[%clk
0:01:51.4]} 22... axb5 {[%clk 0:02:20.2]} 23. d5 {[%clk 0:01:46]} 23... Ne5
{[%clk 0:02:14.6]} 24. Qb3 {[%clk 0:01:42.2]} 24... Ng4 {[%clk 0:02:01.3]} 25.
Nxb5 {[%clk 0:01:41.5]} 25... Nxf2 {[%clk 0:01:53.4]} 26. Qa4 {[%clk 0:01:33.9]}
26... Qxb5 {[%clk 0:01:46.3]} 27. Qxb5 {[%clk 0:01:30.7]} 27... Nxe4 {[%clk
0:01:41.5]} 28. Rb1 {[%clk 0:01:23]} 28... b6 {[%clk 0:01:30]} 29. Bxb6 {[%clk
0:01:22.5]} 29... cxb6 {[%clk 0:01:25.8]} 30. Qxb6+ {[%clk 0:01:22.5]} 30... Kc8
{[%clk 0:01:25.5]} 31. Qc6+ {[%clk 0:01:19.5]} 31... Kd8 {[%clk 0:01:25.4]} 32.
Rb7 {[%clk 0:01:09.6]} 32... Bd4+ {[%clk 0:01:24.9]} 33. Kh1 {[%clk 0:00:58.8]}
33... Nf2+ {[%clk 0:01:24.5]} 34. Kg1 {[%clk 0:00:58.9]} 34... Ng4+ {[%clk
0:01:24.4]} 35. Kf1 {[%clk 0:00:59]} 35... Nxh2# {[%clk 0:01:24.1]} 0-1

[Event "Early-Titled-Tuesday-Blitz-December-26-2023"]
[Site "Chess.com"]
[Date "2023.12.26"]
[Round "4"]
[White "jacky72"]
[Black "Dinosaurio_1975"]
[Result "0-1"]
[WhiteElo "2804"]
[BlackElo "2613"]
[TimeControl "180+1"]
[EndTime "8:36:40 PST"]
[Termination "Dinosaurio_1975 won by resignation"]

1. e4 {[%clk 0:03:00.9]} 1... c6 {[%clk 0:02:59.5]} 2. Nf3 {[%clk 0:02:59.7]}
2... d5 {[%clk 0:02:59.9]} 3. d3 {[%clk 0:03:00.4]} 3... e6 {[%clk 0:02:59.1]}
4. Nc3 {[%clk 0:03:00.6]} 4... Nf6 {[%clk 0:02:55]} 5. Be2 {[%clk 0:02:54.5]}
5... c5 {[%clk 0:02:54.6]} 6. exd5 {[%clk 0:02:54]} 6... exd5 {[%clk 0:02:55.5]}
7. d4 {[%clk 0:02:54.6]} 7... Nc6 {[%clk 0:02:53.9]} 8. O-O {[%clk 0:02:54.3]}
8... Be7 {[%clk 0:02:53.8]} 9. Bg5 {[%clk 0:02:53.5]} 9... O-O {[%clk
0:02:51.7]} 10. dxc5 {[%clk 0:02:52.7]} 10... d4 {[%clk 0:02:47.9]} 11. Bxf6
{[%clk 0:02:50.8]} 11... Bxf6 {[%clk 0:02:46.5]} 12. Ne4 {[%clk 0:02:51.4]}
12... Be7 {[%clk 0:02:39.5]} 13. c3 {[%clk 0:02:51.5]} 13... dxc3 {[%clk
0:02:38.2]} 14. Qxd8 {[%clk 0:02:51.6]} 14... Rxd8 {[%clk 0:02:37.9]} 15. bxc3
{[%clk 0:02:51.3]} 15... Bf5 {[%clk 0:02:37.9]} 16. Nd6 {[%clk 0:02:49.9]} 16...
Bxd6 {[%clk 0:02:37]} 17. cxd6 {[%clk 0:02:50.8]} 17... Rxd6 {[%clk 0:02:37.6]}
18. Rfd1 {[%clk 0:02:51.4]} 18... Rad8 {[%clk 0:02:37.3]} 19. Kf1 {[%clk
0:02:51.2]} 19... Kf8 {[%clk 0:02:37.2]} 20. Rxd6 {[%clk 0:02:50.2]} 20... Rxd6
{[%clk 0:02:36.4]} 21. Rd1 {[%clk 0:02:51.1]} 21... Rxd1+ {[%clk 0:02:35.9]} 22.
Bxd1 {[%clk 0:02:52]} 22... Ke7 {[%clk 0:02:36.1]} 23. Ke2 {[%clk 0:02:52]}
23... Kd6 {[%clk 0:02:36.6]} 24. Ke3 {[%clk 0:02:51.9]} 24... f6 {[%clk
0:02:37.2]} 25. Nd4 {[%clk 0:02:51.2]} 25... Nxd4 {[%clk 0:02:31.5]} 26. Kxd4
{[%clk 0:02:51.3]} 26... b5 {[%clk 0:02:24.5]} 27. a4 {[%clk 0:02:48.4]} 27...
bxa4 {[%clk 0:02:12.6]} 28. Bxa4 {[%clk 0:02:49.3]} 28... Bd7 {[%clk 0:02:10.3]}
29. Bb3 {[%clk 0:02:49.7]} 29... Bc6 {[%clk 0:02:09.8]} 30. c4 {[%clk
0:02:50.6]} 30... Bxg2 {[%clk 0:02:09]} 31. c5+ {[%clk 0:02:50.6]} 31... Kc7
{[%clk 0:02:09.2]} 32. Kc4 {[%clk 0:02:37.3]} 32... Bc6 {[%clk 0:02:05.2]} 33.
Bc2 {[%clk 0:02:37.2]} 33... g6 {[%clk 0:01:58.7]} 34. Bb1 {[%clk 0:02:36.5]}
34... Kd7 {[%clk 0:01:58.8]} 35. Ba2 {[%clk 0:02:36]} 35... a5 {[%clk
0:01:56.2]} 36. Kd4 {[%clk 0:02:35.7]} 36... Ke7 {[%clk 0:01:55.3]} 37. Kc4
{[%clk 0:02:34]} 37... h5 {[%clk 0:01:53.2]} 38. Kd4 {[%clk 0:02:33]} 38... g5
{[%clk 0:01:52.6]} 39. Bc4 {[%clk 0:02:31.3]} 39... h4 {[%clk 0:01:49.3]} 40.
Be2 {[%clk 0:02:30.4]} 40... Ke6 {[%clk 0:01:30]} 41. Bg4+ {[%clk 0:02:30.1]}
41... f5 {[%clk 0:01:29.6]} 42. Bd1 {[%clk 0:02:29.1]} 42... a4 {[%clk
0:01:15.6]} 43. Kc4 {[%clk 0:02:28]} 43... a3 {[%clk 0:01:14]} 44. Bb3 {[%clk
0:02:25.1]} 44... Ke5 {[%clk 0:01:11.9]} 45. Kb4 {[%clk 0:02:24.4]} 45... Kd4
{[%clk 0:01:11.4]} 46. Kxa3 {[%clk 0:02:21]} 46... Kxc5 {[%clk 0:01:11.5]} 47.
Kb2 {[%clk 0:02:21.8]} 47... Kd4 {[%clk 0:01:12]} 48. Kc2 {[%clk 0:02:22.2]}
48... Ke4 {[%clk 0:01:10.7]} 49. Be6 {[%clk 0:02:16.6]} 49... Kf3 {[%clk
0:00:56.2]} 50. Kd2 {[%clk 0:02:15.2]} 50... Be4 {[%clk 0:00:54.6]} 51. Ke1
{[%clk 0:02:14.9]} 51... Kg2 {[%clk 0:00:55.1]} 52. Ke2 {[%clk 0:02:14.2]} 52...
g4 {[%clk 0:00:51.1]} 53. Ke3 {[%clk 0:02:09.8]} 53... Kxh2 {[%clk 0:00:50.6]}
54. Kf4 {[%clk 0:02:09.4]} 54... Kg2 {[%clk 0:00:51.1]} 55. Bxf5 {[%clk
0:02:06.9]} 55... Bxf5 {[%clk 0:00:50.8]} 56. Kxf5 {[%clk 0:02:07.8]} 56... h3
{[%clk 0:00:51.2]} 57. Kxg4 {[%clk 0:02:08.4]} 57... h2 {[%clk 0:00:51.7]} 58.
f4 {[%clk 0:02:09.3]} 58... h1=Q {[%clk 0:00:51.9]} 59. f5 {[%clk 0:02:10.2]}
59... Qh6 {[%clk 0:00:51.4]} 0-1